Cogmind - Beta 16.1 @@@ ROGUE MODE // 2026.04.20 @ 01:29:59 Player: certified.possum Result: Destroyed by Y-45 Defender with Beam Rifle Performance ------------- Evolutions (0) 0 Regions Visited (2) 400 Robots Destroyed (28) 140 Value Destroyed (386) 386 Prototype IDs (0) 0 Alien Tech Used (0) 0 Bonus (0) 0 TOTAL SCORE: 926 Bonus ------- None Cogmind --------- Core Integrity 0/250 Matter 450/450 Energy 98/100 System Corruption 0% Temperature Cool (9) Movement Core (50) Location -10/Mines Parts ------- > --- POWER (1) -------- (None) > --- PROPULSION (2) --- (None) > --- UTILITY (2) ------ Large Matter Pod > --- WEAPON (2) ------- (None) > --- INVENTORY (5) ---- (None) Peak State ------------ > --- POWER ------------ Ion Engine > --- PROPULSION ------- Light Treads Light Treads > --- UTILITY ---------- Small Storage Unit Tractor Beam > --- WEAPON ----------- EM Pulse Gun Assault Rifle > --- INVENTORY -------- Grenade Launcher [Rating: 7] Favorites ----------- Power Ion Engine Engine Ion Engine Propulsion Light Treads Treads Light Treads Flight Unit Flight Unit Utility Small Storage Unit Device Tractor Beam Storage Small Storage Unit Weapon EM Pulse Gun Energy Gun EM Pulse Gun Ballistic Gun Assault Rifle Launcher Grenade Launcher Build | -11 -10 -10 ------- Run | Yrd Mat Min Slots Evolved . | . . . Power . | . . . Propulsion . | . . . Utility . | . . . Weapon . | . . . Parts Attached 14 | 6 4 4 Power 2 | 1 . 1 Engine 2 | 1 . 1 Core . | . . . Reactor . | . . . Propulsion 5 | 2 . 3 Treads 3 | 2 . 1 Leg . | . . . Wheel . | . . . Hover . | . . . Flight 2 | . . 2 Utility 4 | 1 3 . Device 1 | . 1 . Storage 3 | 1 2 . Processor . | . . . Hackware . | . . . Protection . | . . . Artifact . | . . . Weapon 3 | 2 1 . Energy Gun 1 | 1 . . Energy Cannon . | . . . Ballistic Gun 1 | 1 . . Ballistic Cannon . | . . . Launcher 1 | . 1 . Special Weapon . | . . . Impact Weapon . | . . . Slashing Weapon . | . . . Piercing Weapon . | . . . Special Melee Weapon . | . . . Unidentified Prototypes . | . . . Parts Lost 11 | . 1 10 Power 2 | . . 2 Propulsion 5 | . . 5 Utility 1 | . 1 . Weapon 3 | . . 3 Highest Loss Streak 3 | . 1 3 To Critical Strikes . | . . . Average Backups 2 | . 2 3 Power . | . . . Propulsion . | . . . Utility . | . . 2 Weapon . | . . . Tool/Special . | . . . Unused Backups 2 | . . 2 Power . | . . . Propulsion . | . . . Utility 2 | . . 2 Weapon . | . . . Tool/Special . | . . . Average Slot Usage (%) 90 | . 98 62 Engine 14 | . 14 14 Treads 24 | . 27 15 Device 3 | . 4 . Storage 22 | . 23 19 Energy Gun 11 | . 14 1 Ballistic Gun 2 | . . 8 Launcher 11 | . 13 4 Peak Build Rating 7 | 6 7 7 Average Rating 6 | 4 6 4 On Entrance 4 | . 6 7 Avg Prop Armor Cover (%) . | . . . Naked Turns . | . . . Heaviest Build 18 | 14 18 18 Greatest Support 40 | 40 40 40 Greatest Overweight (x) 2 | . . 2 Average Overweight (x) . | . . . Largest Inventory Capacity 8 | 8 8 8 Average Capacity 7 | 7 8 6 Most Carried 5 | 2 4 5 Average Carried 2 | . 2 3 Final Capacity 8 | 8 8 5 Final Carried 4 | 1 4 . Class Distribution -------------------- 100% | Mutant Dominant Class ---------------- Mutant | -10/Materials Mutant | -10/Mines Resources | -11 -10 -10 ----------- Run | Yrd Mat Min Matter Collected 882 | 278 260 344 Remotely 64 | . 64 . Salvage Created 544 | 155 377 12 Parts 45 | 9 35 1 Haulers Intercepted . | . . . Recyclers Shooed 2 | 1 1 . Parts Field Recycled . | . . . Retrieved Matter . | . . . Parts Self-Destructed . | . . . Prevented . | . . . Parts Restored . | . . . Kills | -11 -10 -10 ------- Run | Yrd Mat Min Combat Hostiles Destroyed 12 | . 10 2 AOE 12 | . 10 2 Classes Destroyed 8 | 3 5 . Worker 4 | 1 3 . Builder 2 | . 2 . Tunneler 3 | 2 1 . Recycler 3 | 1 2 . Operator 1 | . 1 . Watcher 3 | . 3 . Swarmer 8 | . 6 2 Grunt 4 | . 4 . Best Kill Streak 7 | 3 7 2 Combat Bots Only 5 | . 5 2 Max Kills in Single Turn 2 | 1 2 2 Gunslinging . | . . . Exploded 2 | . 2 2 Melee . | . . . Uniques/NPCs Destroyed . | . . . Combat | -11 -10 -10 -------- Run | Yrd Mat Min Hostile Shots Fired 66 | . 19 47 Missed 12 | . 6 6 Hits 54 | . 13 41 Projectile 54 | . 13 41 AOE 11 | . . 11 Critical Strikes 1 | . 1 . Damage Taken 1095 | . 173 922 Core 260 | . 26 234 Absorbed by Shields . | . . . Core Remaining (%) 100 | 100 . . Volleys Fired 40 | 7 23 10 Largest 2 | 2 2 1 Hottest 70 | 60 70 30 Shots Fired 52 | 14 28 10 Gun 25 | 14 6 5 Cannon . | . . . Launcher 27 | . 22 5 Special . | . . . Kinetic 13 | 7 1 5 Thermal . | . . . Explosive 27 | . 22 5 Electromagnetic 12 | 7 5 . Robot Hit Streak 4 | 3 2 4 Robot Miss Streak 3 | 3 1 1 Penetration Max . | . . . Secondary Targets . | . . . Shots Hit Robots 23 | 7 10 6 Core Hits 41 | 5 30 6 Critical Kills . | . . . Critical Parts Destroyed . | . . . Critical Strikes . | . . . Melee Attacks . | . . . Impact . | . . . Slashing . | . . . Piercing . | . . . Sneak Attacks . | . . . Combat Hostiles . | . . . Follow-up Attacks . | . . . Damage Inflicted 1378 | 88 1104 186 Guns 151 | 88 12 51 Cannons . | . . . Explosions 1224 | . 1092 132 Melee . | . . . Ramming 3 | . . 3 Kinetic 110 | 47 12 51 Thermal . | . . . Explosive 1224 | . 1092 132 Electromagnetic 41 | 41 . . Impact . | . . . Slashing . | . . . Piercing . | . . . Highest Corruption . | . . . Average Corruption . | . . . Corruption Purged . | . . . Corruption Blocked . | . . . Overload Shots . | . . . Overflow Damage 3 | . 3 . Projectiles . | . . . Explosions 3 | . 3 . Melee . | . . . Knockbacks . | . . . Impact . | . . . Kinetic . | . . . Secondary . | . . . Self-Inflicted Damage 28 | . 28 . Shots 1 | . 1 . Rammed 1 | . . 1 Targets Rammed 1 | . . 1 Kicked . | . . . Crushed . | . . . Highest Temperature 22 | . 22 2 Average Temperature 7 | . 7 2 Received Heat Transfer 216 | . 90 126 Siege Activations . | . . . Martial Activations . | . . . Shielding Activations . | . . . Robots Disrupted . | . . . Combat Hostiles . | . . . Robots Corrupted . | . . . Combat Hostiles . | . . . Parts Fried . | . . . Impact Corruptions . | . . . Robots Melted . | . . . Combat Hostiles . | . . . Parts Melted . | . . . Heat Transferred . | . . . Parts Sabotaged . | . . . Parts Stolen . | . . . Parts Stripped . | . . . Power Chain Reactions . | . . . Alert | -11 -10 -10 ------- Run | Yrd Mat Min Maximum Alert Level 1 | . 1 . Low Security (%) 83 | 100 76 100 Level 1 16 | . 23 . Level 2 . | . . . Level 3 . | . . . Level 4 . | . . . Level 5 . | . . . High Security . | . . . Max Security . | . . . Peak Influence 274 | 5 274 110 Initial 55 | . 3 55 Average 93 | . 120 36 Influence Increases 566 | 20 470 76 Destroy 0b10 Robot/C 240 | . 200 40 Destroy 0b10 Robot/NC 80 | 20 60 . Destroy Leader 56 | . 46 10 Disable Machine 60 | . 60 . Destroy Structure 130 | . 104 26 Influence Decreases 566 | 15 331 220 Entered New Map 91 | . 2 89 Time Decay 425 | 15 319 91 Lost Part 50 | . 10 40 Squads Dispatched 1 | . 1 . Investigation . | . . . Extermination . | . . . Reinforcement 1 | . 1 . Assault . | . . . Garrison . | . . . Intercept . | . . . Searches Triggered . | . . . Construction Impeded . | . . . Haulers Reinforced . | . . . Active Scanning Responses . | . . . Cargo Convoy Interrupts . | . . . Stealth | -11 -10 -10 --------- Run | Yrd Mat Min Distress Signals . | . . . Communications Jammed . | . . . Distress Signals . | . . . Times Spotted 25 | . 18 7 Peak Tracking Total 4 | . 4 3 Tactical Retreats . | . . . Traps | -11 -10 -10 ------- Run | Yrd Mat Min Traps Triggered 1 | . 1 . Indirectly . | . . . Trap Hack Attempts . | . . . Triggered . | . . . Disarmed . | . . . Reprogrammed . | . . . Reused . | . . . Traps Extracted . | . . . Installed . | . . . Triggered . | . . . Machines | -11 -10 -10 ---------- Run | Yrd Mat Min Machines Disabled 4 | . 4 . Max in Single Turn 2 | . 2 . Machines Repaired . | . . . Machines Dismantled . | . . . Machines Sabotaged . | . . . Overloaded Fab Kills . | . . . Hacking | -11 -10 -10 --------- Run | Yrd Mat Min Machines Accessed . | . . . Terminals . | . . . Fabricators . | . . . Repair Stations . | . . . Recycling Units . | . . . Scanalyzers . | . . . Garrison Access . | . . . Total Hacks . | . . . Successful . | . . . Failed . | . . . Catastrophic . | . . . Database Lockouts . | . . . Manual . | . . . Terminals . | . . . Fabricators . | . . . Repair Stations . | . . . Recycling Units . | . . . Scanalyzers . | . . . Garrison Access . | . . . Terminal Hacks . | . . . Fabricator Hacks . | . . . Repair Station Hacks . | . . . Recycling Unit Hacks . | . . . Scanalyzer . | . . . Garrison Access Hacks . | . . . Unauthorized Hacks . | . . . Terminals . | . . . Fabricators . | . . . Repair Stations . | . . . Recycling Units . | . . . Scanalyzers . | . . . Garrison Access . | . . . Data Cores Recovered 1 | . 1 . Used . | . . . Hacking Detections . | . . . Full Trace Events . | . . . Feedback Events . | . . . Feedback Blocked . | . . . Robot Schematics Acquired . | . . . Robots Built . | . . . Authchips . | . . . Time . | . . . Total Robot Build Rating . | . . . Part Schematics Acquired . | . . . Parts Built . | . . . Authchips . | . . . Time . | . . . Total Part Build Rating . | . . . Part Studies Acquired . | . . . Parts Repaired . | . . . Time . | . . . Parts Recycled . | . . . Recycled Matter . | . . . Retrieved Matter . | . . . Retrieved Components . | . . . Parts Scanalyzed . | . . . Part Schematics Acquired . | . . . Parts Damaged . | . . . Bothacking | -11 -10 -10 ------------ Run | Yrd Mat Min Used RIF Installer . | . . . Robots Hacked . | . . . Non-combat . | . . . Combat . | . . . Robot Hacks Applied . | . . . Relay Couplers Released . | . . . Fabnet Peak Effective % . | . . . Robots Rewired . | . . . Allies Hacked . | . . . Hacks Repelled . | . . . Allies | -11 -10 -10 -------- Run | Yrd Mat Min Total Allies . | . . . Largest Group . | . . . Highest-Rated Group . | . . . Highest-Rated Ally . | . . . Total Orders . | . . . Ally Attacks . | . . . Total Damage . | . . . Kills . | . . . Allies Corrupted . | . . . Allies Melted . | . . . Intel | -11 -10 -10 ------- Run | Yrd Mat Min Active Infowar (turns) . | . . . Robot Analysis Total . | . . . Derelict Logs Recovered 1 | . . 1 Drone Launches . | . . . Drone Recoveries . | . . . Exploration | -11 -10 -10 ------------- Run | Yrd Mat Min Turns Passed 1315 | 107 939 269 Spaces Moved 769 | 52 548 169 Core 53 | 8 . 45 Treads 706 | 44 548 114 Legs . | . . . Wheels . | . . . Hover . | . . . Flight 10 | . . 10 Fastest Speed 37 | 50 160 37 Average Speed 154 | 143 160 139 Slowest Speed 160 | 160 160 160 Overloaded Moves . | . . . Propulsion Burnouts . | . . . Robots Hopped . | . . . Potential Cave-ins . | . . . Cave-ins Triggered . | . . . Exploration Rate (%) 41 | 5 88 30 Regions Visited 2 Branch Regions 1 Pre-discovered Areas . | . . . Known Exits Taken . | . . . Unknown Exits Taken 2 | 1 1 . Scrap Searched . | . . . Spaces Dug 7 | . . 7 Terrain Destroyed 131 | . 100 31 Melee . | . . . Projectile . | . . . AOE 131 | . 100 31 Terrain Rammed . | . . . Walls Destroyed . | . . . Machines Disabled . | . . . Actions | -11 -10 -10 --------- Run | Yrd Mat Min Total 846 | 71 581 194 Wait . | . . . Move 767 | 51 547 169 Hop . | . . . Pick Up 17 | 7 6 4 Fast Attach . | . . . Attach 14 | 6 3 5 Detach 1 | . . 1 Swap 2 | . 2 . Drop 4 | . . 4 Fire 40 | 7 23 10 Melee . | . . . Ram . | . . . Kick . | . . . Crush 1 | . . 1 Escape Stasis . | . . . Rewire . | . . . Trap . | . . . Miscellaneous . | . . . Route ------- -11/Scrapyard -10/Materials (discovered 4 exits: *Mat x3 / [*Min]) -10/Mines (discovered 1 exit: Mat) History --------- Turn | Location | Event 5 | -11/Scrapyard | Discovered new exit (range 16) 108 | -11/Scrapyard | Entered Materials 312 | -10/Materials | Build established: Mutant 360 | -10/Materials | Discovered new exit (range 8) 473 | -10/Materials | Discovered new exit (range 5) 624 | -10/Materials | Discovered new exit (range 9) 855 | -10/Materials | Discovered new exit (range 9) 1047 | -10/Materials | Entered Mines 1048 | -10/Mines | Assembled infested the area 1071 | -10/Mines | Met 8R-AWN 1142 | -10/Mines | Lost 3 parts (2n1w) 1154 | -10/Mines | Identified exit to Materials 1268 | -10/Mines | Core integrity fell below 50% 1302 | -10/Mines | Lost 3 parts (1p1n1w) 1311 | -10/Mines | Core integrity fell below 20% 1316 | -10/Mines | Destroyed by Y-45 Defender with Beam Rifle Last Messages --------------- Assault Rifle destroyed. R-06 Scavenger collects Sml. Storage Unit. K-01 Serf collects debris. U-05 Engineer builds a Wall. Acquired 5 matter. U-05 Engineer builds a Wall. K-01 Serf collects debris. U-05 Engineer builds a Wall. U-05 Engineer lays Concrete. R-06 Scavenger collects Mining Laser. U-05 Engineer builds a Wall. R-06 Scavenger collects Lgt. Ion Engine. Acquired Flight Unit. Flight Unit destroyed. Dropped Med. Matter Pod. Dropped Launcher Guidance Computer. Extracted 15 matter. Dropped Shock Absorption System. Flight Unit destroyed. Lgt. Ion Engine destroyed. Map ----- +----------------------------------------------------+ | ??????????????????????????????????????????????? | | ??????????????????????????????????????????????? | | ????????????#########?????????????????????????? | | ???????????## ??????????????????????????? | | ???????????# ???????????????????????????? | | ???????###?# #????????????????????????????? | | ??????##!!## ##???????????????????????????? | | ??????#"!! # #???????????????????????????? | | ??????# / ##??????????????????????????? | | ??????# / #??????????????????????????? | | ??????#"!! # #??????????????????????????? | | ??????##!??# ##?????????????????????????? | | ???????????### #?????????????????????????? | | ???????######## #?????????????????????????? | | ??###### ####?## #?????????????????????????? | | ??# ##### ##????????????????????????? | | ??# """" ###### ###??????????????????????? | | ??# """" ### ####???????????????????? | | ??# """" ## #### # ##??????????????????? | | ??# # ##?## #??????????????????? | | ??# ## ###### ###?????????????????? | | ??# * [## #### ## ##????????????????? | | ??#######"### !! #### # ##???????????????? | | ????????## # ! ##### # ######??????????? | | ????????#### Y Y ; #??????????? | | ????????# ! @ % #######??????????? | | ????????##% ####### #;#????????????????? | | ?????????### # # # ######?????????????? | | ???????????## # #### #?????????????? | | ??????????###% ###### #?????????????? | | ??????????#" " ### ### #?????????????? | | ??????????# % % # #?# #?# #?????????????? | | ??????????# ## #?# #?# #?# ##???????? | | ??????????# #"### ### #?# #???????? | | ??????????## "## ## ## ?????? | | ???????????####### ## ?????? | | ???????????????###### ?????? | | ???????????????# ### ##????????? | | ???????????????# ##??# ####?????????? | | ???????????????# #######???? ##????????????? | | ???????????????# #?????????? #?????????????? | | ??????????###### ####??????? #?????????????? | | ??????????# #???????? #?????????????? | | ??????????# #???????? ##?????????????? | | ??????????# #???????? ##??????????????? | | ??????????# #?????????#???????????????? | | ??????????# """" #?????????????????????????? | | ??????????# """" #?????????????????????????? | | ??????????# """" #?????????????????????????? | | ??????????###########?????????????????????????? | +----------------------------------------------------+ Best States ------------- Heat Dissipation 25 Energy Generation 10 Energy Capacity 250 Matter Stores 450 Matter Capacity 450 Sight Range 16 Terrain Scan Density 10 Evasion (%) 40 Recoil Reduction 2 Item Schematics ----------------- None Robot Schematics ------------------ None Fabricated ------------ Nothing Repaired ---------- Nothing Studied --------- None Alien Tech Used ----------------- None Achievements -------------- DATA ERROR: Steam Global Achievement% For Emergencies Only Organ Harvest There's More Where That Came From Challenges ------------ None Game ------ Seed TransportShockboltBroadsword Manual? 0 Play Time 00:17:29 Cumulative 5.2 hours Start 2026.04.20 @ 01:10:58 End 2026.04.20 @ 01:29:59 Sessions 1 Manual Loads 0 Difficulty Rogue Special Mode None Game No. 20 Rogue 20 Adventurer 0 Explorer 0 Win Type - Total 0 Types 0/0/0/0/0/0/0/0/0/0 Lore% 2 Gallery% 10 Achievement% 7 Wizard Run 0 Options --------- Layout 1 ASCII 0 Keyboard 0 Movement Mouse Keybinds 0 Fullscreen 2 Font 32/Tamsyn Map View 50x35 Zoom Use 0% Tactical HUD 0 Map Filters NONE Filters NONE Steam 1 RUN: a77effba-6c44-4ccc-ac3a-e6de5ae8a80c